Cogmind - Beta 16 @@@ ROGUE MODE // 2025.11.06 @ 14:55:02 Player: shapeshifter Result: Destroyed by P-60 Hacker with Shock Rifle Performance ------------- Evolutions (2) 1000 Regions Visited (6) 1200 Robots Destroyed (51) 255 Value Destroyed (2147) 2147 Prototype IDs (26) 520 Alien Tech Used (0) 0 Bonus (1116) 1116 TOTAL SCORE: 6238 Bonus ------- High Alert Combat Kills 116 Entered Garrisons 200 Used RIF Installer 500 Aligned with FarCom 300 Cogmind --------- Core Integrity 0/550 Matter 300/300 Energy 99/100 System Corruption 25% Temperature Cool (0) Movement Core (300) Ox5 Location -8/Garrison Parts ------- > --- POWER (1) -------- (None) > --- PROPULSION (4) --- (None) > --- UTILITY (4) ------ Medium Storage Unit Machine Analyzer Improved Melee Analysis Suite Improved Melee Analysis Suite > --- WEAPON (2) ------- Great Maul Power Sword > --- INVENTORY (10) --- Flying Fortress v7 High-capacity Storage Unit Modified TNC Cloaking Device Relay Coupler [NC] (31) Relay Coupler [Sentry] (20) Skeleton Box Peak State ------------ > --- POWER ------------ Light Nuclear Core > --- PROPULSION ------- Advanced Treads Cesium-ion Thruster Nuclear Pulse Thruster > --- UTILITY ---------- High-capacity Storage Unit Machine Analyzer Improved Melee Analysis Suite Improved Melee Analysis Suite > --- WEAPON ----------- Improved Assault Rifle Improved Assault Rifle > --- INVENTORY -------- Flying Fortress v7 Small Storage Unit Medium Storage Unit Modified TNC Cloaking Device Reactive Plating Skeleton Box Gauss Rifle Advanced EMP Blaster Great Maul Power Sword [Rating: 39] Favorites ----------- Power Improved Ion Engine Engine Improved Ion Engine Power Core Light Nuclear Core Propulsion Wheel Treads Light Treads Wheel Wheel Flight Unit Cesium-ion Thruster Utility High-capacity Storage Unit Device Improved Heat Sink Storage High-capacity Storage Unit Processor Machine Analyzer Protection Propulsion Shielding Weapon Assault Rifle Energy Gun Particle Gun Ballistic Gun Assault Rifle Launcher Advanced EMP Blaster Impact Weapon Great Maul Slashing Weapon Power Sword Build | -11 -10 -10 -10 -9 -8 -8 ------- Run | Yrd Mat Min Exi Min Mat Gar Slots Evolved 4 | . . . . . 4 . Power . | . . . . . . . Propulsion 2 | . . . . . 2 . Utility 2 | . . . . . 2 . Weapon . | . . . . . . . Parts Attached 40 | 4 . 1 4 2 21 8 Power 3 | . . . . 1 2 . Engine 2 | . . . . 1 1 . Core 1 | . . . . . 1 . Reactor . | . . . . . . . Propulsion 13 | 2 . . 1 . 7 3 Treads 4 | 2 . . . . 2 . Leg . | . . . . . . . Wheel 5 | . . . 1 . 4 . Hover . | . . . . . . . Flight 4 | . . . . . 1 3 Utility 14 | . . . 3 1 7 3 Device 4 | . . . . . 3 1 Storage 3 | . . . 3 . . . Processor 5 | . . . . . 3 2 Hackware . | . . . . . . . Protection 2 | . . . . 1 1 . Artifact . | . . . . . . . Weapon 10 | 2 . 1 . . 5 2 Energy Gun 1 | . . . . . 1 . Energy Cannon . | . . . . . . . Ballistic Gun 5 | 2 . 1 . . 2 . Ballistic Cannon . | . . . . . . . Launcher 2 | . . . . . 1 1 Special Weapon . | . . . . . . . Impact Weapon 1 | . . . . . 1 . Slashing Weapon 1 | . . . . . . 1 Piercing Weapon . | . . . . . . . Special Melee Weapon . | . . . . . . . Unidentified Prototypes 3 | . . . . . 3 . Corrupted Parts 2 | . . . . . . 2 System Corruption 20 | . . . . . . 20 Parts Lost 16 | . . 2 . 1 4 9 Power 1 | . . . . . . 1 Propulsion 10 | . . 1 . . 2 7 Utility 2 | . . . . . 1 1 Weapon 3 | . . 1 . 1 1 . Highest Loss Streak 3 | . . 2 . 1 3 2 To Critical Strikes . | . . . . . . . Average Backups 11 | 2 5 5 7 10 15 11 Power . | . 1 1 1 1 1 . Propulsion 1 | . 2 1 . 1 1 1 Utility 7 | . 1 1 5 7 10 6 Weapon 1 | . 1 1 . . 1 1 Tool/Special . | . . . . . . . Unused Backups 16 | 1 . 1 . . 3 11 Power 1 | 1 . . . . . . Propulsion 2 | . . 1 . . . 1 Utility 10 | . . . . . 3 7 Weapon 2 | . . . . . . 2 Tool/Special 1 | . . . . . . 1 Average Slot Usage (%) 81 | . 57 49 64 83 93 79 Engine 4 | . . . . 5 6 2 Core 1 | . . . . . 2 . Treads 11 | . 28 24 14 14 11 4 Wheel 12 | . . . 11 14 18 8 Flight 3 | . . . . . 2 9 Device 2 | . . . . . 5 3 Storage 9 | . . . 11 14 9 9 Processor 13 | . . . . . 17 22 Protection 2 | . . . . 9 3 . Energy Gun 1 | . . . . . 3 . Ballistic Gun 15 | . 28 24 25 25 13 7 Impact Weapon 1 | . . . . . . 5 Slashing Weapon 1 | . . . . . . 4 Peak Build Rating 39 | 4 4 5 10 13 34 39 Average Rating 23 | 2 4 4 7 11 29 31 On Entrance 9 | . 4 4 3 10 12 33 Avg Prop Armor Cover (%) 15 | 26 26 25 15 12 13 8 Naked Turns . | . . . . . . . Heaviest Build 58 | 3 3 3 44 48 58 55 Greatest Support 42 | 3 3 40 10 10 42 30 Greatest Overweight (x) 5 | . . . 4 4 5 2 Average Overweight (x) 1 | . . . 1 4 2 1 Largest Inventory Capacity 20 | 5 5 5 20 20 20 20 Average Capacity 16 | 5 5 5 12 20 20 14 Most Carried 20 | 5 5 5 13 14 20 20 Average Carried 14 | 3 5 4 8 13 18 14 Final Capacity 20 | 5 5 5 20 20 20 10 Final Carried 20 | 5 5 5 13 13 20 10 Class Distribution -------------------- 57% | Mutant 26% | Scavenger-Mutant 14% | Gladiator Dominant Class ---------------- Mutant | -10/Materials Mutant | -10/Mines Mutant | -10/Exiles Mutant | -9/Mines Scavenger-Mutant | -8/Materials Gladiator | -8/Garrison Resources | -11 -10 -10 -10 -9 -8 -8 ----------- Run | Yrd Mat Min Exi Min Mat Gar Matter Collected 1515 | 129 . 191 90 95 456 554 Remotely . | . . . . . . . Salvage Created 2059 | . . 135 . 143 748 1033 Parts 106 | . . 11 . 12 38 45 Haulers Intercepted 3 | . . . . . 3 . Recyclers Shooed 1 | . . 1 . . . . Parts Field Recycled . | . . . . . . . Retrieved Matter . | . . . . . . . Parts Self-Destructed . | . . . . . . . Prevented . | . . . . . . . Parts Restored . | . . . . . . . Kills | -11 -10 -10 -10 -9 -8 -8 ------- Run | Yrd Mat Min Exi Min Mat Gar Combat Hostiles Destroyed 37 | . . 3 . 3 9 22 Melee 5 | . . . . . . 5 Guns 19 | . . 3 . 3 5 8 AOE 10 | . . . . . 4 6 Classes Destroyed 14 | . . 3 . . 7 4 Worker 1 | . . . . . 1 . Builder 1 | . . . . . 1 . Tunneler 2 | . . 1 . 1 . . Hauler 3 | . . . . . 3 . Recycler 2 | . . 1 . 1 . . Mechanic 1 | . . . . . 1 . Watcher 4 | . . . . . 2 2 Swarmer 10 | . . 3 . 3 . 4 Grunt 14 | . . . . . 8 6 Brawler 1 | . . . . . . 1 Duelist 2 | . . . . . . 2 Sentry 6 | . . . . . . 6 Hunter 3 | . . . . . 1 2 Programmer 1 | . . . . . . 1 Best Kill Streak 9 | . . 2 . 3 9 9 Combat Bots Only 9 | . . 2 . 3 4 9 Max Kills in Single Turn 5 | . . 2 . 1 3 5 Gunslinging 1 | . . 1 . . . . Exploded 5 | . . . . . 1 5 Melee 1 | . . . . . . 1 Uniques/NPCs Destroyed 1 | . . 1 . . . . YI-UF0 (-10/Mines) Combat | -11 -10 -10 -10 -9 -8 -8 -------- Run | Yrd Mat Min Exi Min Mat Gar Hostile Shots Fired 211 | . . 32 . 15 49 115 Missed 70 | . . 14 . 5 21 30 Hits 141 | . . 18 . 10 28 85 Melee 5 | . . . . . . 5 Projectile 136 | . . 18 . 10 28 80 AOE 16 | . . 14 . 2 . . Critical Strikes 8 | . . . . . 1 7 Actively Blocked 1 | . . . . . 1 . Damage Taken 2483 | . . 447 . 137 446 1453 Core 654 | . . 69 . 24 47 514 Absorbed by Shields . | . . . . . . . Redirected to Shielding 39 | . . . . 6 33 . Core Remaining (%) 81 | 100 . . . 62 . . Volleys Fired 123 | . . 20 . 10 50 43 Largest 2 | . . 2 . 2 2 2 Hottest 85 | . . 40 . 40 85 46 Shots Fired 218 | . . 40 . 20 75 83 Gun 204 | . . 40 . 20 65 79 Cannon . | . . . . . . . Launcher 14 | . . . . . 10 4 Special . | . . . . . . . Kinetic 182 | . . 40 . 20 43 79 Thermal 22 | . . . . . 22 . Explosive . | . . . . . . . Electromagnetic 14 | . . . . . 10 4 Robot Hit Streak 25 | . . 12 . 2 11 25 Robot Miss Streak 4 | . . 4 . 4 4 1 Penetration Max . | . . . . . . . Secondary Targets 3 | . . 1 . 1 . 1 Max Gunslinging Chain 1 | . . 1 . 1 . 1 Shots Hit Robots 177 | . . 27 . 7 56 87 Core Hits 83 | . . 9 . 5 31 38 Critical Kills 1 | . . . . . . 1 Critical Parts Destroyed 7 | . . . . . 1 6 Critical Strikes 12 | . . . . . 3 9 Burn 2 | . . . . . 2 . Destroy 1 | . . . . . . 1 Smash 8 | . . . . . 1 7 Sever 1 | . . . . . . 1 Melee Attacks 58 | . . . . . 2 56 Impact 51 | . . . . . 2 49 Slashing 7 | . . . . . . 7 Piercing . | . . . . . . . Sneak Attacks 2 | . . . . . 2 . Combat Hostiles . | . . . . . . . Follow-up Attacks 2 | . . . . . . 2 Damage Inflicted 4071 | . . 286 . 85 1308 2392 Guns 1960 | . . 286 . 85 674 915 Cannons . | . . . . . . . Explosions 1018 | . . . . . 477 541 Melee 1093 | . . . . . 157 936 Ramming . | . . . . . . . Kinetic 1692 | . . 286 . 85 406 915 Thermal 452 | . . . . . 306 146 Explosive . | . . . . . . . Electromagnetic 834 | . . . . . 439 395 Impact 986 | . . . . . 157 829 Slashing 107 | . . . . . . 107 Piercing . | . . . . . . . Highest Corruption 25 | . . . . . 3 25 Average Corruption 4 | . . . . . 3 5 Corruption Purged . | . . . . . . . Corruption Blocked . | . . . . . . . Effects 55 | . . . . . 29 26 Message Errors 13 | . . . . . 9 4 Matter Fused 13 | . . . . . 8 5 Heat Flow Errors 6 | . . . . . 1 5 Energy Discharges 7 | . . . . . 4 3 Parts Rejected 1 | . . . . . . 1 Parts Fused 2 | . . . . . . 2 Data Loss (minor) 7 | . . . . . 5 2 Data Loss (major) 1 | . . . . . 1 . Misfires 2 | . . . . . 1 1 Alerts 3 | . . . . . . 3 Overload Shots . | . . . . . . . Overflow Damage 417 | . . . . . 89 328 Projectiles . | . . . . . . . Explosions 52 | . . . . . 8 44 Melee 365 | . . . . . 81 284 Knockbacks 5 | . . . . . . 5 Impact 4 | . . . . . . 4 Kinetic . | . . . . . . . Secondary 1 | . . . . . . 1 Self-Inflicted Damage 83 | . . . . . 7 76 Shots 5 | . . . . . 1 4 Rammed . | . . . . . . . Targets Rammed . | . . . . . . . Kicked . | . . . . . . . Crushed . | . . . . . . . Highest Temperature 260 | . . . . . 260 223 Average Temperature 82 | . . . . . 79 89 Received Heat Transfer 531 | . . . . . 225 306 Siege Activations . | . . . . . . . Martial Activations . | . . . . . . . Shielding Activations . | . . . . . . . Robots Disrupted . | . . . . . . . Combat Hostiles . | . . . . . . . Robots Corrupted 3 | . . . . . . 3 Combat Hostiles 3 | . . . . . . 3 Parts Fried 9 | . . . . . 4 5 Impact Corruptions 12 | . . . . . 1 11 Robots Melted . | . . . . . . . Combat Hostiles . | . . . . . . . Parts Melted 1 | . . . . . 1 . Heat Transferred 977 | . . . . . 827 150 Parts Sabotaged . | . . . . . . . Parts Stolen . | . . . . . . . Parts Stripped . | . . . . . . . Power Chain Reactions 4 | . . . . . 3 1 Alert | -11 -10 -10 -10 -9 -8 -8 ------- Run | Yrd Mat Min Exi Min Mat Gar Maximum Alert Level 3 | . . . . . . 3 Low Security (%) 77 | 100 100 100 . 100 100 31 Level 1 3 | . . . . . . 10 Level 2 16 | . . . . . . 48 Level 3 3 | . . . . . . 9 Level 4 . | . . . . . . . Level 5 . | . . . . . . . High Security . | . . . . . . . Max Security . | . . . . . . . Peak Influence 829 | . . 155 . 79 127 829 Initial . | . . . . . . . Average 158 | . . 55 . 12 35 412 Influence Increases 1570 | . . 195 . 129 347 899 Destroy 0b10 Robot/C 800 | . . 120 . 60 180 440 Destroy 0b10 Robot/NC 70 | . . 10 . 10 40 10 Destroy Leader 90 | . . 20 . 10 30 30 Allied During Kill 4 | . . . . 4 . . Successful Hack 60 | . . . . . 44 16 Disable Machine 15 | . . . . . 15 . Anti-Garrison Action 300 | . . . . . . 300 Destroy Structure 51 | . . . . . 8 43 Lose Combat Pursuer 180 | . . 45 . 45 30 60 Influence Decreases 761 | . . 195 . 129 347 90 Time Decay 596 | . . 135 . 124 337 . Lost Part 125 | . . 20 . 5 10 90 Lost Ally 40 | . . 40 . . . . Squads Dispatched . | . . . . . . . Investigation . | . . . . . . . Extermination . | . . . . . . . Reinforcement . | . . . . . . . Assault . | . . . . . . . Garrison . | . . . . . . . Intercept . | . . . . . . . Searches Triggered . | . . . . . . . Construction Impeded . | . . . . . . . Haulers Reinforced . | . . . . . . . Active Scanning Responses . | . . . . . . . Cargo Convoy Interrupts . | . . . . . . . Stealth | -11 -10 -10 -10 -9 -8 -8 --------- Run | Yrd Mat Min Exi Min Mat Gar Distress Signals 7 | . . . . . 4 3 Communications Jammed . | . . . . . . . Distress Signals . | . . . . . . . Times Spotted 60 | . . 5 . 7 19 29 Peak Tracking Total 10 | . . 3 . 3 5 10 Tactical Retreats 7 | . . 1 . 2 1 3 Traps | -11 -10 -10 -10 -9 -8 -8 ------- Run | Yrd Mat Min Exi Min Mat Gar Traps Triggered 13 | . . . . . 2 11 Indirectly 1 | . . . . . . 1 Trap Hack Attempts . | . . . . . . . Triggered . | . . . . . . . Disarmed . | . . . . . . . Reprogrammed . | . . . . . . . Reused . | . . . . . . . Traps Extracted . | . . . . . . . Installed . | . . . . . . . Triggered . | . . . . . . . Machines | -11 -10 -10 -10 -9 -8 -8 ---------- Run | Yrd Mat Min Exi Min Mat Gar Machines Disabled 4 | . . . . . 1 3 Max in Single Turn 1 | . . . . . 1 1 Garrison Relay 3 | . . . . . . 3 Machines Repaired . | . . . . . . . Machines Dismantled . | . . . . . . . Machines Sabotaged . | . . . . . . . Overloaded Fab Kills . | . . . . . . . Hacking | -11 -10 -10 -10 -9 -8 -8 --------- Run | Yrd Mat Min Exi Min Mat Gar Machines Accessed 16 | . 1 . 2 . 10 3 Terminals 11 | . 1 . . . 7 3 Fabricators . | . . . . . . . Repair Stations . | . . . . . . . Recycling Units 1 | . . . . . 1 . Scanalyzers 1 | . . . . . 1 . Garrison Access 1 | . . . . . 1 . Total Hacks 40 | . 3 . 2 . 27 8 Successful 14 | . . . 2 . 11 1 Failed 26 | . 3 . . . 16 7 Catastrophic 4 | . . . . . 3 1 Database Lockouts . | . . . . . . . Manual 23 | . 3 . 1 . 19 . Terminals 33 | . 3 . . . 22 8 Fabricators . | . . . . . . . Repair Stations . | . . . . . . . Recycling Units 1 | . . . . . 1 . Scanalyzers 3 | . . . . . 3 . Garrison Access 1 | . . . . . 1 . Terminal Hacks 5 | . . . 2 . 2 1 Record 1 | . . . 1 . . . Zone Layout 2 | . . . . . 2 . Security Stations 1 | . . . . . . 1 Proto ID Catalog 1 | . . . 1 . . . Fabricator Hacks . | . . . . . . . Repair Station Hacks . | . . . . . . . Recycling Unit Hacks . | . . . . . . . Scanalyzer 3 | . . . . . 3 . Retrieve Study 3 | . . . . . 3 . Garrison Access Hacks 1 | . . . . . 1 . Unlock Access 1 | . . . . . 1 . Unauthorized Hacks 5 | . . . . . 5 . Terminals 5 | . . . . . 5 . Skim 5 | . . . . . 5 . Fabricators . | . . . . . . . Repair Stations . | . . . . . . . Recycling Units . | . . . . . . . Scanalyzers . | . . . . . . . Garrison Access . | . . . . . . . Data Cores Recovered . | . . . . . . . Used . | . . . . . . . Hacking Detections 13 | . 1 . . . 9 3 Full Trace Events 1 | . . . . . . 1 Feedback Events . | . . . . . . . Feedback Blocked . | . . . . . . . Robot Schematics Acquired . | . . . . . . . Robots Built . | . . . . . . . Authchips . | . . . . . . . Time . | . . . . . . . Total Robot Build Rating . | . . . . . . . Part Schematics Acquired . | . . . . . . . Parts Built . | . . . . . . . Authchips . | . . . . . . . Time . | . . . . . . . Total Part Build Rating . | . . . . . . . Part Studies Acquired 3 | . . . . . 3 . Parts Repaired . | . . . . . . . Time . | . . . . . . . Parts Recycled . | . . . . . . . Recycled Matter . | . . . . . . . Retrieved Matter . | . . . . . . . Retrieved Components . | . . . . . . . Parts Scanalyzed . | . . . . . . . Part Schematics Acquired . | . . . . . . . Parts Damaged . | . . . . . . . Bothacking | -11 -10 -10 -10 -9 -8 -8 ------------ Run | Yrd Mat Min Exi Min Mat Gar Used RIF Installer 1 | . . . . . . 1 Robots Hacked . | . . . . . . . Non-combat . | . . . . . . . Combat . | . . . . . . . Robot Hacks Applied . | . . . . . . . Relay Couplers Released 12 | . . . . . . 12 Machine Destruction 12 | . . . . . . 12 Fabnet Peak Effective % . | . . . . . . . Robots Rewired . | . . . . . . . Allies Hacked . | . . . . . . . Hacks Repelled . | . . . . . . . Allies | -11 -10 -10 -10 -9 -8 -8 -------- Run | Yrd Mat Min Exi Min Mat Gar Total Allies 4 | . . 3 . 1 . . Largest Group 3 | . . 3 1 2 . . Highest-Rated Group 47 | . . 40 16 47 . . Highest-Rated Ally 31 | . . 16 16 31 . . Total Orders . | . . . . . . . Ally Attacks 20 | . . 17 . 3 . . Total Damage 217 | . . 203 . 14 . . Kills 4 | . . 4 . . . . Allies Corrupted . | . . . . . . . Allies Melted . | . . . . . . . Intel | -11 -10 -10 -10 -9 -8 -8 ------- Run | Yrd Mat Min Exi Min Mat Gar Active Infowar (turns) 2762 | . . . . . 1480 1282 Optics 290 | . . . . . 290 . Machine Analysis 2472 | . . . . . 1190 1282 Robot Analysis Total . | . . . . . . . Derelict Logs Recovered 3 | . . . . 3 . . Drone Launches . | . . . . . . . Drone Recoveries . | . . . . . . . Exploration | -11 -10 -10 -10 -9 -8 -8 ------------- Run | Yrd Mat Min Exi Min Mat Gar Turns Passed 4175 | 36 45 340 331 646 1495 1282 Spaces Moved 2449 | 44 77 390 350 434 467 687 Core 584 | 44 77 387 76 . . . Treads 149 | . . 3 . . 65 81 Legs . | . . . . . . . Wheels 1312 | . . . 274 434 402 202 Hover . | . . . . . . . Flight 404 | . . . . . . 404 Fastest Speed 29 | 50 50 50 50 140 85 29 Average Speed 106 | 50 50 50 90 140 134 114 Slowest Speed 305 | 50 50 160 140 140 305 225 Overloaded Moves . | . . . . . . . Propulsion Burnouts . | . . . . . . . Robots Hopped . | . . . . . . . Potential Cave-ins . | . . . . . . . Cave-ins Triggered . | . . . . . . . Exploration Rate (%) 49 | 4 23 69 68 70 42 71 Regions Visited 6 Branch Regions 3 Pre-discovered Areas 2 | . . . 1 1 . . Known Exits Taken 1 | . . . . . 1 . Unknown Exits Taken 5 | 1 1 1 1 1 . . Scrap Searched 3 | . . 1 . 2 . . Spaces Dug 23 | . . . . . . 23 Terrain Destroyed 37 | . . . . . 9 28 Melee 23 | . . . . . . 23 Projectile . | . . . . . . . AOE 14 | . . . . . 9 5 Terrain Rammed . | . . . . . . . Walls Destroyed . | . . . . . . . Machines Disabled . | . . . . . . . Actions | -11 -10 -10 -10 -9 -8 -8 --------- Run | Yrd Mat Min Exi Min Mat Gar Total 3704 | 58 82 496 365 452 1252 999 Wait 876 | . 6 83 . 5 670 112 Move 2444 | 43 76 389 349 433 467 687 Hop . | . . . . . . . Pick Up 51 | 10 . 1 9 2 21 8 Fast Attach 16 | . . . . . 13 3 Attach 30 | 4 . 1 5 2 9 9 Detach 3 | . . 1 1 . 1 . Swap 18 | . . . . . 7 11 Drop 28 | 1 . 1 1 . 12 13 Fire 123 | . . 20 . 10 50 43 Melee 53 | . . . . . 2 51 Ram . | . . . . . . . Kick . | . . . . . . . Crush . | . . . . . . . Escape Stasis 62 | . . . . . . 62 Rewire . | . . . . . . . Trap . | . . . . . . . Miscellaneous . | . . . . . . . Route ------- -11/Scrapyard -10/Materials -10/Mines (discovered 2 exits: [*Mat] / *Exi) -10/Exiles -9/Mines (discovered 2 exits: *Mat x2) -8/Materials (discovered 4 exits: *Fac x3 / Gar) -8/Garrison (discovered 2 exits: [*Mat x2]) History --------- Turn | Location | Event 2 | -11/Scrapyard | Met Revision 17 22 | -11/Scrapyard | Discovered new exit (range 16) 37 | -11/Scrapyard | Entered Materials 74 | -10/Materials | Discovered new exit (range 16) 82 | -10/Materials | Entered Mines 115 | -10/Mines | Deemed a non-threat by the Exiles lab entrance 115 | -10/Mines | Discovered new exit (range 5) 133 | -10/Mines | Found a damaged Exp. Sensor Array with a note attached 135 | -10/Mines | Found Prototype Device 178 | -10/Mines | Discovered new exit (range 14) 196 | -10/Mines | Assisted by bots powering up and referring to "LRC-V3" 276 | -10/Mines | YI-UF0 nonchalantly dropped a Grenade Launcher on the ground 308 | -10/Mines | Build established: Mutant 332 | -10/Mines | Allies destroyed YI-UF0 422 | -10/Mines | Entered Exiles 422 | -10/Exiles | Accompanied by 1 ally 435 | -10/Exiles | Met 8R-AWN 443 | -10/Exiles | Met EX-HEX 484 | -10/Exiles | Met EX-DEC 497 | -10/Exiles | Learned location of Zion (-6) 573 | -10/Exiles | Met EX-BIN 584 | -10/Exiles | Aligned with FarCom system 585 | -10/Exiles | Given EX-Vault access code 603 | -10/Exiles | Opened EX-Vault 610 | -10/Exiles | Found Flying Fortress v7 622 | -10/Exiles | Found Modified TNC 625 | -10/Exiles | Found Skeleton Box 654 | -10/Exiles | Warned to stay clear of 0b10 Research branches 663 | -10/Exiles | Exiles lab attacked by MAIN.C 740 | -10/Exiles | Discovered new exit (range 10) 753 | -10/Exiles | Stole three prototypes: Flying Fortress v7, Modified TNC, Skeleton Box 753 | -10/Exiles | Entered Mines 753 | -9/Mines | Accompanied by 1 ally 991 | -9/Mines | Received a Mining Laser from a helpful Derelict 1018 | -9/Mines | Learned 2 Materials zone layouts 1138 | -9/Mines | Discovered new exit (range 14) 1240 | -9/Mines | Assembled infested the area 1245 | -9/Mines | Assisted by a Guerilla fighting off Assembled 1328 | -9/Mines | Lost 3 allies 1396 | -9/Mines | Discovered new exit (range 12) 1399 | -9/Mines | Entered Materials 1399 | -8/Materials | Evolved 4 slots: Propulsion x2, Utility x2 1414 | -8/Materials | Identified Exp. Sensor Array 1986 | -8/Materials | Lost 3 parts (2n1u) 2234 | -8/Materials | Discovered new exit (range 10) 2334 | -8/Materials | Identified exit to Factory 2392 | -8/Materials | Learned Factory trap positions 2421 | -8/Materials | Build established: Scavenger-Mutant 2440 | -8/Materials | Learned location of 2 exits from Factory 2476 | -8/Materials | Learned 4 Recycling zone layouts 2586 | -8/Materials | Learned location of 1 exit from Extension 2894 | -8/Materials | Identified exit to Garrison 2894 | -8/Materials | Entered Garrison 3033 | -8/Garrison | Garrison Relay disabled 3160 | -8/Garrison | Triggered checkpoint 3339 | -8/Garrison | Destroyed 9 combat bots 3493 | -8/Garrison | Garrison Relay disabled 3495 | -8/Garrison | Build established: Mutant 3629 | -8/Garrison | Discovered new exit (range 13) 3660 | -8/Garrison | Triggered checkpoint 3701 | -8/Garrison | Learned Materials security intel 3719 | -8/Garrison | Garrison Relay disabled 3818 | -8/Garrison | Build established: Gladiator 3999 | -8/Garrison | System corruption reached 10% 4021 | -8/Garrison | Discovered new exit (range 12) 4031 | -8/Garrison | Installed Relay Interface Framework 4041 | -8/Garrison | Core integrity fell below 50% 4090 | -8/Garrison | Triggered checkpoint 4164 | -8/Garrison | Core integrity fell below 20% 4176 | -8/Garrison | Destroyed by P-60 Hacker with Shock Rifle Last Messages --------------- 04072_ Destroyed Lgt. Armor Plating. 04072_ Y-45 Defender system corrupted by crushing effect. 04072_ Power Sword follow-up attack on Y-45 Defender. 04072_ Y-45 Defender Lgt. Treads severed. 04073_ System corrupted: Flight Unit fused. 04073_ Y-45 Defender system terminally corrupted. 04090_ Beams of light sweep through the air. An alarm sounds. 04094_ ALERT: Garrison interior compromised. 04110_ System corrupted: Energy discharge (-37). 04128_ System corrupted: IFF burst signal emitted. 04146_ 8T%X& S 04162_ System corrupted: Energy discharge (-33). 04163_ P-60 Hacker knocked back. Map ----- +----------------------------------------------------+ | ???????????????????????????????????????????? | | ???????????????????????????????????????????? | | ???????????????????????????????????????????? | | ???????????????????????????????????????????? | | ???????????????????????????????????????????? | | ???????????????????????????????????????????? | | ???????????????????????????????????????????? | | ???????????????????????????????????????????? | | ???????????????????????????????????????????? | | ?????????###???????????????????????????????? | | ????????# ???????????????????????????????? | | ????????#